bitfinex/quotes_SOLUSD_20220103
["timestamp","ask_amount","ask_price","bid_price","bid_amount"]
[1641190768474,2.10572066,172.98,172.91,18.3257]
[1641190768671,0.5,172.98,172.91,18.3257]
[1641190768870,1.8169,172.99,172.91,18.3257]
[1641190769070,1.3169,172.99,172.91,18.3257]
[1641190769270,1.8169,172.99,172.91,18.3257]
[1641190769471,1.3169,172.99,172.91,18.3257]
[1641190770174,4.12447297,173.0,172.91,18.3257]
[1641190770371,4.62447297,173.0,172.91,18.3257]
[1641190770573,4.12447297,173.0,172.91,18.3257]
[1641190772874,4.62447297,173.0,172.91,18.3257]
[1641190773275,4.12447297,173.0,172.91,18.3257]
[1641190774274,5.46657297,173.0,172.91,18.3257]
[1641190774473,5.96657297,173.0,172.91,18.3257]
[1641190774975,5.46657297,173.0,172.91,18.3257]
[1641190776381,5.46657297,173.0,172.91,10.2257]
[1641190776681,20.22867297,173.0,172.88,6.03211104]
[1641190776881,20.98867297,173.0,172.88,8.6758]
[1641190777485,1.60572066,172.97,172.88,8.6758]
[1641190777686,8.676,172.96,172.88,8.6758]
[1641190778486,9.9099,172.96,172.88,8.6758]
[1641190779009,9.9099,172.96,172.88,8.9358]
[1641190781012,10.1699,172.96,172.88,8.9358]
[1641190781910,10.1699,172.96,172.88,8.6758]
[1641190783014,10.1699,172.96,172.88,8.9358]
[1641190784118,9.9099,172.96,172.88,8.9358]
[1641190794832,1.2339,172.96,172.88,8.9358]
[1641190795032,8.6753,172.97,172.88,8.9358]
[1641190795231,1.60572066,172.99,172.88,8.9358]
[1641190795431,0.5,172.97,172.88,8.9358]
[1641190795631,0.5,172.97,172.91,8.6745]
[1641190795832,3.33812066,172.99,172.91,8.6745]
[1641190796034,3.33812066,172.99,172.91,8.9345]
[1641190797332,12.01282066,172.99,172.91,8.9345]
[1641190800738,10.4071,172.99,172.91,8.9345]
[1641190803340,12.01282066,172.99,172.91,8.9345]
[1641190803547,12.27282066,172.99,172.91,8.9345]
[1641190805176,10.6671,172.99,172.91,8.9345]
[1641190805564,12.27282066,172.99,172.91,8.9345]
[1641190805863,12.01282066,172.99,172.91,8.9345]
[1641190806565,10.4071,172.99,172.91,8.9345]
[1641190810967,10.6671,172.99,172.91,8.9345]
[1641190813369,10.4071,172.99,172.91,8.9345]
[1641190813569,10.6671,172.99,172.91,8.9345]
[1641190814776,12.27282066,172.99,172.91,8.9345]
[1641190815378,10.6671,172.99,172.91,8.9345]
[1641190820188,9.9071,172.99,172.91,8.9345]
[1641190820391,1.2324,172.99,172.91,8.9345]
[1641190820590,74.88462066,173.0,172.91,8.9345]
[1641190820789,73.2789,173.0,172.91,8.9345]
[1641190821791,73.2789,173.0,172.94,8.673]
[1641190821991,11.43995049,173.01,172.94,8.933]
[1641190822393,11.69995049,173.01,172.94,8.933]
[1641190823392,12.19995049,173.01,172.94,8.933]
[1641190824294,12.19995049,173.01,172.94,0.26]
[1641190824496,12.19995049,173.01,172.93,8.9337]
[1641190824793,11.93995049,173.01,172.93,8.9337]
[1641190825896,11.43995049,173.01,172.93,8.9337]
[1641190826095,11.93995049,173.01,172.93,8.9337]
[1641190828597,13.04567115,173.01,172.93,8.9337]
[1641190829197,13.04567115,173.01,172.93,8.6737]
[1641190829397,13.54567115,173.01,172.93,8.6737]
[1641190829697,13.80567115,173.01,172.93,8.6737]
[1641190830297,13.30567115,173.01,172.93,8.6737]
[1641190830499,13.80567115,173.01,172.93,8.9337]
[1641190831799,13.30567115,173.01,172.93,8.9337]
[1641190832002,13.80567115,173.01,172.93,8.9337]
[1641190836806,13.54567115,173.01,172.93,8.9337]
[1641190837004,13.80567115,173.01,172.93,8.9337]
[1641190841632,13.54567115,173.01,172.93,8.9337]
[1641190841832,1.60572066,173.01,172.93,8.9337]
[1641190842035,1.60572066,173.01,172.94,30.60283622]
[1641190842233,1.60572066,173.01,172.97,8.6713]
[1641190842732,1.60572066,173.02,172.97,8.9313]
[1641190842935,4.61998971,173.02,172.97,8.9313]
[1641190843533,3.01426905,173.02,172.97,8.9313]
[1641190857881,1.60572066,173.05,172.97,8.9313]
[1641190858387,86.90212066,173.06,172.97,8.9313]
[1641190858581,87.40212066,173.06,172.97,8.9313]
[1641190858784,2.59029165,173.05,172.97,8.9313]
[1641190858981,3.09029165,173.05,172.97,8.9313]
[1641190860287,2.59029165,173.05,172.97,8.9313]
[1641190866694,2.59029165,173.05,172.97,10.35799368]
[1641190869798,2.59029165,173.05,172.97,8.9313]
[1641190872004,1.3144,173.06,172.97,8.9313]
[1641190872205,1.60572066,173.07,172.97,15.92099368]
[1641190872404,1.60572066,173.07,172.98,8.1]
[1641190872605,1.60572066,173.08,173.03,27.31593388]
[1641190873006,1.60572066,173.08,173.03,27.57593388]
[1641190873605,78.16095531,173.1,173.03,27.57593388]
[1641190873810,78.16095531,173.1,173.06,8.667]
[1641190874006,3.76465531,173.1,173.06,8.927]
[1641190874209,1.60572066,173.1,173.06,8.927]
[1641190874609,81.54882066,173.12,173.06,8.927]
[1641190875210,1.60572066,173.12,173.06,8.927]
[1641190875412,2.27515824,173.11,173.06,8.927]
[1641190875810,2.77515824,173.11,173.06,8.927]
[1641190876011,4.3808789,173.11,173.06,8.927]
[1641190876213,3.8808789,173.11,173.06,8.927]
[1641190876839,2.27515824,173.11,173.06,8.927]
[1641190877741,1.60572066,173.11,173.06,8.927]
[1641190878542,1.60572066,173.12,173.06,8.927]
[1641190880942,2.83202066,173.13,173.06,8.927]
[1641190881143,2.83202066,173.13,173.06,8.667]
[1641190881543,5.71402438,173.13,173.06,8.667]
[1641190881741,4.10830372,173.13,173.06,8.667]
[1641190882641,4.10830372,173.13,173.06,8.927]
[1641190889746,2.88200372,173.13,173.06,8.927]
[1641190892253,2.88200372,173.13,173.06,17.027]
[1641190897956,11.54832066,173.15,173.06,17.027]
[1641190898158,1.60572066,173.14,173.06,17.027]
[1641190899159,2.50900212,173.13,173.06,17.027]
[1641190899760,2.50900212,173.13,173.06,16.767]
[1641190900960,2.50900212,173.13,173.06,17.027]
[1641190906893,3.00900212,173.13,173.06,17.027]
[1641190907094,3.00900212,173.13,173.06,8.927]
[1641190909794,2.50900212,173.13,173.06,8.927]
[1641190911496,2.76900212,173.13,173.0,1.2726]
[1641190911698,2.76900212,173.13,172.99,9.52669368]
[1641190911699,10.59600212,173.13,172.99,9.52669368]
[1641190911896,27.36350212,173.13,173.02,8.6689]
[1641190912102,27.36350212,173.13,172.97,1.42669368]
[1641190912304,76.4487,173.12,172.98,1.2252]
[1641190912497,76.7087,173.12,172.98,1.2252]
[1641190912700,1.60572066,173.11,172.98,1.2252]
[1641190912899,2.63029622,173.05,173.0,8.6702]
[1641190913500,2.63029622,173.05,173.0,8.9302]
[1641190920008,8.6705,173.06,173.0,8.9302]
[1641190920612,10.0198,173.07,173.0,8.9302]
[1641190920810,1.3497,173.07,173.01,29.11149558]
[1641190921010,1.3497,173.07,173.02,8.6692]
[1641190921209,2.22235085,173.08,173.02,8.6692]
[1641190921436,2.22235085,173.08,173.02,8.9292]
[1641190921811,0.26,173.02,172.92,579.4973575]
[1641190922011,0.26,173.02,172.92,500.1861575]
[1641190922215,0.26,173.02,172.92,491.85764821]
[1641190922415,0.26,173.02,172.93,8.6737]
[1641190922611,0.26,173.02,172.93,37.81555483]
[1641190922816,8.9328,173.02,172.93,29.14185483]
[1641190923013,2.1848909,173.01,172.93,29.14185483]
[1641190923413,2.6848909,173.01,172.93,29.14185483]
[1641190923612,2.6848909,173.01,172.93,29.40185483]
[1641190923814,8.6743,172.99,172.93,29.14185483]
[1641190924214,9.1743,172.99,172.93,29.14185483]
[1641190925319,9.1743,172.99,172.93,29.40185483]
[1641190926920,8.6743,172.99,172.93,29.40185483]
[1641190927921,8.6743,172.99,172.93,38.07555483]
[1641190928423,8.6735,173.0,172.93,38.07555483]
[1641190939759,1.5909,173.02,172.93,43.73755483]
[1641190939961,0.26,173.02,172.93,51.83755483]
[1641190941164,0.26,173.02,172.98,8.6705]
[1641190941365,0.26,173.02,172.98,14.3565]
[1641190941564,0.26,173.02,172.98,14.6165]
[1641190943366,0.26,173.02,172.98,8.9305]
[1641190944770,0.26,173.02,172.98,8.6705]
[1641190946073,0.26,173.02,172.98,8.9305]
[1641190953777,0.26,173.02,172.98,0.26]
[1641190953979,0.26,173.02,172.97,8.9317]
[1641190977720,8.9323,173.02,172.97,0.26]
[1641190978120,8.9323,173.02,172.93,1.5008]
[1641190978319,9.4323,173.02,172.93,1.5008]
[1641190978520,10.6657,173.02,172.93,1.5008]
[1641190979422,10.6657,173.02,172.95,8.6728]
[1641190979622,10.6657,173.02,172.95,8.9328]
[1641190980022,10.1657,173.02,172.95,8.9328]
[1641190982832,0.26,173.02,172.95,8.9328]
[1641190983632,0.26,173.02,172.96,1.2592]
[1641190983834,0.26,173.02,172.99,8.6708]
[1641190984041,0.26,173.02,172.99,8.9308]
[1641190986345,0.26,173.02,173.0,6.06439993]
[1641190986545,0.26,173.02,173.0,14.99469993]
[1641190999177,0.26,173.02,173.0,8.9303]
[1641191002680,0.26,173.02,173.0,11.96249996]
[1641191002881,0.26,173.02,173.0,14.99469993]
[1641191008488,0.26,173.02,173.0,20.26669993]
[1641191010887,0.26,173.02,173.01,41.1]
[1641191011086,0.26,173.02,173.01,51.2678]
[1641191018490,0.26,173.02,173.01,18.2678]
[1641191018989,0.26,173.02,173.01,10.1678]
[1641191028706,0.26,173.02,173.01,9.9078]
[1641191030015,0.26,173.02,173.01,10.1678]
[1641191044059,0.26,173.02,173.01,16.23219993]
[1641191048565,0.26,173.02,173.01,13.19999996]
[1641191048867,0.26,173.02,173.01,10.1678]
[1641191052790,0.26,173.02,173.01,13.19999997]
[1641191055190,0.26,173.02,173.01,16.23219993]
[1641191058494,4.20893924,173.1,173.01,16.23219993]
[1641191058696,4.20893924,173.1,173.01,17.65889361]
[1641191059694,2.60321858,173.1,173.01,17.65889361]
[1641191060198,2.60321858,173.1,173.01,16.23219993]
[1641191060397,2.60321858,173.1,173.01,15.97219993]
[1641191060797,11.27151858,173.1,173.01,15.97219993]
[1641191061297,11.77151858,173.1,173.01,15.97219993]
[1641191061695,11.27151858,173.1,173.01,16.23219993]
[1641191062097,12.50871858,173.1,173.01,16.23219993]
[1641191069106,14.11443924,173.1,173.01,16.23219993]
[1641191072410,12.50871858,173.1,173.01,16.23219993]
[1641191075434,13.00871858,173.1,173.01,16.23219993]
[1641191075636,12.50871858,173.1,173.01,16.23219993]
[1641191080540,14.11443924,173.1,173.01,16.23219993]
[1641191081240,12.50871858,173.1,173.01,16.23219993]
[1641191083347,14.61443924,173.1,173.01,16.23219993]
[1641191084448,14.61443924,173.1,173.01,15.97219993]
[1641191085749,14.11443924,173.1,173.01,15.97219993]
[1641191085950,14.11443924,173.1,173.01,16.23219993]
[1641191086250,3.84041858,173.1,173.01,16.23219993]
[1641191088553,12.50861858,173.1,173.01,16.23219993]
[1641191088754,13.00861858,173.1,173.01,16.23219993]
[1641191090859,14.61433924,173.1,173.01,16.23219993]
[1641191093060,1.60572066,173.09,173.01,16.23219993]
[1641191093260,8.669,173.08,173.01,16.23219993]
[1641191093459,8.669,173.08,173.01,13.19999996]
[1641191094360,9.169,173.08,173.01,13.19999996]
[1641191094560,9.169,173.08,173.01,10.1678]
[1641191095469,9.169,173.08,173.01,8.6677]
[1641191095667,9.169,173.08,172.96,40.44923554]
[1641191095869,9.429,173.08,172.99,14.70263388]
[1641191096069,9.429,173.08,172.99,8.6704]
[1641191096369,9.429,173.08,172.99,6.03237623]
[1641191096674,17.529,173.08,172.99,6.03237623]
[1641191096869,17.529,173.08,172.92,18.42523554]
[1641191097070,79.7495,173.07,172.94,1.2365]
[1641191097469,80.5095,173.07,172.94,1.2365]
[1641191097670,1.3173,173.06,172.94,1.2365]
[1641191097873,1.8173,173.06,172.94,1.2365]
[1641191098072,2.0773,173.06,172.94,1.2365]
[1641191098274,8.6719,173.05,172.96,8.6719]
[1641191098474,2.98403287,173.04,172.96,8.6719]
[1641191098774,2.98403287,173.04,172.96,8.9319]
[1641191098975,3.74403287,173.04,172.96,8.9319]
[1641191099374,4.23853287,173.04,172.96,8.9319]
[1641191102198,1.2545,173.04,172.96,8.9319]
[1641191103202,3.79157509,173.04,172.98,8.6711]
[1641191103501,3.79157509,173.04,172.98,8.9311]
[1641191106209,1.2545,173.04,172.98,8.9311]
[1641191120457,1.2545,173.04,172.98,8.6711]
[1641191120656,1.2545,173.04,172.97,8.6718]
[1641191122062,1.2545,173.04,172.97,8.9318]
[1641191124893,1.7545,173.04,172.97,8.9318]
[1641191125494,1.5145,173.04,172.97,8.6718]
[1641191125694,2.0145,173.04,172.97,8.6718]
[1641191126896,2.0145,173.04,172.97,8.9318]
[1641191129500,1.2545,173.04,172.97,8.9318]
[1641191129704,1.7545,173.04,172.97,8.9318]
[1641191130701,1.7545,173.04,172.97,8.6718]
[1641191130902,1.7545,173.04,172.96,8.6722]
[1641191130903,2.0145,173.04,172.96,8.6722]
[1641191131309,2.0145,173.04,172.89,84.1298]
[1641191131503,8.1,173.03,172.9,1.2513]
[1641191131905,8.86,173.03,172.9,1.2513]
[1641191132306,10.46572066,173.03,172.91,31.03000063]
[1641191132507,10.46572066,173.03,172.91,31.29000063]
[1641191132809,3.05202999,173.01,172.91,31.29000063]
[1641191133006,3.31202999,173.01,172.91,31.29000063]
[1641191133206,3.81202999,173.01,172.91,0.26]
[1641191133412,8.6744,173.0,172.92,8.6743]
[1641191133607,0.26,173.0,172.92,8.6743]
[1641191133807,0.76,173.0,172.92,8.6743]
[1641191134208,0.5,173.0,172.92,8.6743]
[1641191134406,13.51775065,173.01,172.92,8.6743]
[1641191134807,13.51775065,173.01,172.92,8.9343]
[1641191135311,8.6746,172.99,172.92,8.9343]
[1641191135507,8.9346,172.99,172.92,8.9343]
[1641191135707,9.4346,172.99,172.92,0.26]
[1641191136110,9.4346,172.99,172.91,8.9347]
[1641191137009,8.9346,172.99,172.91,8.9347]
[1641191137211,9.4346,172.99,172.91,8.9347]
[1641191144456,9.4346,172.99,172.89,8.6752]
[1641191144656,8.1,172.98,172.87,1.3275]
[1641191144858,9.8441,172.98,172.87,1.3275]
[1641191145058,10.1041,172.98,172.87,1.3275]
[1641191146059,10.1041,172.98,172.87,1.5875]
[1641191146358,8.6766,172.95,172.87,10.2637]
[1641191146561,2.18177366,172.94,172.87,10.2637]
[1641191146959,2.68177366,172.94,172.87,10.2637]
[1641191148361,2.68177366,172.94,172.87,10.0037]
[1641191148561,2.94177366,172.94,172.87,1.3275]
[1641191149461,2.94177366,172.94,172.84,79.9936]
[1641191149662,1.295,172.93,172.86,8.677]
[1641191150062,1.555,172.93,172.86,8.937]
[1641191154367,2.055,172.93,172.86,8.937]
[1641191154566,1.795,172.93,172.86,8.937]
[1641191154765,1.295,172.93,172.86,10.36369368]
[1641191154966,1.60572066,172.98,172.86,10.36369368]
[1641191155166,2.93582066,172.97,172.88,8.6758]
[1641191155367,3.43582066,172.97,172.89,27.06868176]
[1641191155567,3.69582066,172.97,172.89,27.32868176]
[1641191155969,2.0901,172.97,172.89,27.32868176]
[1641191156371,10.7662,172.97,172.89,27.32868176]
[1641191156567,10.7662,172.97,172.89,28.57268176]
[1641191157569,10.2662,172.97,172.89,28.57268176]
[1641191157968,10.7662,172.97,172.89,28.57268176]
[1641191162002,10.2662,172.97,172.89,28.57268176]
[1641191162503,10.2662,172.97,172.89,37.24818176]
[1641191163906,10.7662,172.97,172.89,37.24818176]
[1641191164406,1.3301,172.97,172.89,37.24818176]
[1641191164611,1.3301,172.97,172.89,43.77287544]
[1641191165707,19.15685999,172.99,172.89,43.77287544]
[1641191165910,20.88005999,172.99,172.89,43.77287544]
[1641191167114,21.14005999,172.99,172.89,43.77287544]
[1641191171116,21.14005999,172.99,172.89,38.67487544]
[1641191171517,21.14005999,172.99,172.89,38.41487544]
[1641191172017,21.14005999,172.99,172.89,36.98818176]
[1641191172921,21.14005999,172.99,172.89,37.24818176]
[1641191173619,21.14005999,172.99,172.89,36.98818176]
[1641191174919,21.14005999,172.99,172.89,44.27818176]
[1641191175123,21.14005999,172.99,172.89,44.53818176]
[1641191175322,21.14005999,172.99,172.89,45.96487544]
[1641191175924,9.3232,172.99,172.89,45.96487544]
[1641191176124,80.26602066,173.01,172.89,45.96487544]
[1641191176325,1.60572066,173.01,172.89,45.96487544]
[1641191176625,1.60572066,173.01,172.89,54.06487544]
[1641191176825,2.93952066,173.03,172.89,54.06487544]
[1641191177030,2.56378769,173.02,172.89,54.06487544]
[1641191181555,11.23688769,173.02,172.89,46.77487544]
[1641191181758,11.49688769,173.02,172.89,46.77487544]
[1641191181960,90.38908769,173.02,172.89,46.77487544]
[1641191182162,90.88908769,173.02,172.89,45.34818176]
[1641191182361,90.88908769,173.02,172.89,45.08818176]
[1641191182559,1.2455,173.01,172.89,45.08818176]
[1641191182760,8.6746,172.99,172.89,45.08818176]
[1641191183164,8.9346,172.99,172.89,45.08818176]
[1641191183559,1.3363,172.98,172.89,45.34818176]
[1641191183960,1.3363,172.98,172.89,45.08818176]
[1641191184260,10.27962066,173.01,172.9,1.42669368]
[1641191184461,1.60572066,173.01,172.9,1.42669368]
[1641191185260,84.36380835,173.02,172.9,1.68669368]
[1641191185462,93.03690835,173.02,172.94,8.6731]
[1641191185865,84.36380835,173.02,172.94,8.9331]
[1641191186062,84.36380835,173.02,172.94,15.3601]
[1641191186466,82.75808769,173.02,172.94,15.3601]
[1641191186764,3.86588769,173.02,172.94,15.3601]
[1641191186965,2.56378769,173.02,172.94,15.3601]
[1641191189970,2.56378769,173.02,172.94,16.78679368]
[1641191190870,2.56378769,173.02,172.94,10.35979368]
[1641191192171,2.56378769,173.02,172.94,8.9331]
[1641191192371,12.96408769,173.02,172.94,8.9331]
[1641191192972,13.22408769,173.02,172.94,0.26]
[1641191193474,13.22408769,173.02,172.93,1.552]
[1641191193771,14.82980835,173.02,172.93,1.552]
[1641191193974,14.06980835,173.02,172.93,10.2256]
[1641191194373,14.56980835,173.02,172.93,10.2256]
[1641191194576,14.06980835,173.02,172.93,10.2256]
[1641191195572,14.56980835,173.02,172.93,10.2256]
[1641191198173,12.96408769,173.02,172.93,10.2256]
[1641191199176,12.46408769,173.02,172.93,10.2256]
[1641191201887,3.79098769,173.02,172.93,10.2256]
[1641191205693,3.79098769,173.02,172.93,9.9656]
[1641191206806,4.29098769,173.02,172.93,10.2256]
[1641191207009,13.22408769,173.02,172.93,10.2256]
[1641191207310,12.96408769,173.02,172.93,10.2256]
[1641191207910,13.22408769,173.02,172.93,10.2256]
[1641191208512,10.4003,173.02,172.93,10.2256]
[1641191208711,1.2272,173.02,172.93,11.65229368]
[1641191209610,2.96747773,173.01,172.93,11.65229368]
[1641191211214,1.2272,173.02,172.93,11.65229368]
[1641191212417,4.13418288,173.02,172.93,11.65229368]
[1641191213117,4.39418288,173.02,172.93,10.2256]
[1641191213318,4.89418288,173.02,172.93,10.2256]
[1641191213918,4.39418288,173.02,172.93,10.2256]
[1641191215322,13.06738288,173.02,172.93,10.2256]
[1641191215522,13.56738288,173.02,172.93,10.2256]
[1641191216224,15.17310354,173.02,172.93,10.2256]
[1641191219533,13.56738288,173.02,172.93,10.2256]
[1641191220342,15.17310354,173.02,172.93,10.2256]
[1641191224941,14.67310354,173.02,172.93,10.2256]
[1641191225139,15.17310354,173.02,172.93,1.552]
[1641191225363,15.17310354,173.02,172.93,0.26]
[1641191225560,15.17310354,173.02,172.91,10.1905]
[1641191226362,1.60572066,173.01,172.91,10.1905]
[1641191226564,1.86572066,173.01,172.91,10.1905]
[1641191226761,8.6751,172.98,172.91,10.1905]
[1641191226962,9.4351,172.98,172.91,10.1905]
[1641191227662,9.4351,172.98,172.91,9.9305]
[1641191229065,9.4351,172.98,172.91,10.1905]
[1641191230265,8.9351,172.98,172.91,10.1905]
[1641191231667,8.6751,172.98,172.91,10.1905]
[1641191231866,1.2359,173.0,172.91,10.1905]
[1641191233271,1.4959,173.0,172.91,10.1905]
[1641191233472,10.1699,173.0,172.91,10.1905]
[1641191234672,10.6699,173.0,172.91,10.1905]
[1641191236476,10.1699,173.0,172.91,10.1905]
[1641191238380,10.6699,173.0,172.91,10.1905]
[1641191241379,10.4099,173.0,172.91,10.1905]
[1641191241580,1.2359,173.0,172.91,10.1905]
[1641191242381,1.2359,173.0,172.91,11.61719368]
[1641191246785,1.2359,173.0,172.91,9.9305]
[1641191246984,1.4959,173.0,172.91,9.9305]
[1641191247986,1.2359,173.0,172.91,9.9305]
[1641191248391,9.91,173.0,172.91,9.9305]
[1641191248790,10.17,173.0,172.91,9.9305]
[1641191248990,10.17,173.0,172.91,10.1905]
[1641191249690,9.91,173.0,172.91,10.1905]
[1641191249890,10.17,173.0,172.91,10.1905]
[1641191257719,10.17,173.0,172.91,11.61719368]
[1641191258317,10.17,173.0,172.91,10.1905]
[1641191263237,10.17,173.0,172.91,11.61719368]
[1641191263428,10.67,173.0,172.91,11.61719368]
[1641191265527,10.17,173.0,172.91,11.61719368]
[1641191266832,1.4959,173.0,172.91,11.61719368]
[1641191273839,1.4959,173.0,172.91,10.1905]
[1641191277144,1.4959,173.0,172.91,11.61719368]
[1641191280369,1.9959,173.0,172.91,11.61719368]
[1641191281669,1.9959,173.0,172.98,0.27479599]
[1641191283172,1.2359,173.0,172.98,0.27479599]
[1641191283374,2.90698288,173.02,172.98,6.99579599]
[1641191283575,1.60572066,173.03,172.98,7.25579599]
[1641191284975,1.3118,173.04,172.98,7.25579599]
[1641191284976,3.84887438,173.04,172.98,7.25579599]
[1641191286475,3.84887438,173.04,172.98,15.92699599]
[1641191287277,82.02,173.05,172.98,15.92699599]
[1641191287475,79.5681,173.06,172.98,15.92699599]
[1641191287874,79.5681,173.06,172.98,17.35368967]
[1641191288477,5.87693364,173.07,172.98,17.35368967]
[1641191289276,5.87693364,173.07,172.99,1.3107]
[1641191289475,5.87693364,173.07,173.02,8.6691]
[1641191289876,4.27121298,173.07,173.02,8.9291]
[1641191290675,1.348,173.07,173.02,8.9291]
[1641191291076,1.60572066,173.09,173.02,8.9291]
[1641191291480,2.10572066,173.09,173.02,8.9291]
[1641191291680,3.75078722,173.09,173.02,8.9291]
[1641191291878,3.75078722,173.09,173.05,0.27479599]
[1641191292280,2.14506656,173.09,173.05,0.27479599]
[1641191292679,75.10792066,173.1,173.05,0.27479599]
[1641191293279,75.36792066,173.1,173.05,0.27479599]
[1641191293678,2.58350679,173.09,173.05,0.27479599]
[1641191296781,2.84350679,173.09,173.05,0.27479599]
[1641191296982,11.51320679,173.09,173.05,0.27479599]
[1641191299286,12.01320679,173.09,173.05,0.27479599]
[1641191299686,1.3301,173.08,173.05,0.27479599]
[1641191299888,10.27662066,173.07,173.05,0.27479599]
[1641191300086,10.53662066,173.07,173.05,0.27479599]
[1641191300288,11.03662066,173.07,173.05,0.27479599]
[1641191301686,10.53662066,173.07,173.05,0.27479599]
[1641191301888,11.03662066,173.07,173.05,0.27479599]
[1641191302889,11.03662066,173.07,172.97,8.6714]
[1641191303089,10.27702066,173.06,172.97,8.9314]
[1641191303488,10.53702066,173.06,172.97,8.9314]
[1641191303688,11.03702066,173.06,172.97,8.9314]
[1641191303891,10.53702066,173.06,172.97,8.9314]
[1641191308200,8.9313,173.06,172.97,8.9314]
[1641191310400,9.4313,173.06,172.97,8.6714]
[1641191310603,8.9313,173.06,172.97,8.6714]
[1641191310801,9.4313,173.06,172.97,8.6714]
[1641191311301,8.9313,173.06,172.97,8.6714]
[1641191311727,9.4313,173.06,172.97,8.6714]
[1641191311929,9.4313,173.06,172.97,8.9314]
[1641191312626,8.9313,173.06,172.97,8.9314]
[1641191313227,9.4313,173.06,172.97,8.9314]
[1641191313626,1.60572066,173.05,172.97,8.9314]
[1641191313827,10.27762066,173.05,172.97,8.9314]
[1641191314030,11.03762066,173.05,172.97,8.9314]
[1641191315729,10.27762066,173.05,172.97,8.9314]
[1641191315930,1.60572066,173.05,172.98,1.42669368]
[1641191316129,1.60572066,173.05,172.99,8.6704]
[1641191316536,1.60572066,173.05,173.0,1.42669368]
[1641191316733,1.60572066,173.07,172.99,0.26]
[1641191317131,1.60572066,173.07,172.98,1.68669368]
[1641191317330,1.86572066,173.07,172.98,0.26]
[1641191317532,1.86572066,173.07,172.96,1.6131]
[1641191317831,0.26,173.07,172.96,9.7131]
[1641191318033,1.86572066,173.08,173.0,8.6703]
[1641191318233,1.60572066,173.07,173.0,8.6703]
[1641191318434,1.60572066,173.07,173.0,8.9303]
[1641191318633,1.86572066,173.07,173.0,8.9303]
[1641191320333,0.26,173.07,173.0,8.9303]
[1641191320535,12.29162066,173.08,173.0,8.9303]
[1641191324245,12.29162066,173.08,172.99,8.6708]
[1641191324439,1.60572066,173.07,172.96,1.3531]
[1641191324639,8.6716,173.06,172.96,1.3531]
[1641191325041,9.4316,173.06,172.96,1.3531]
[1641191325240,11.03732066,173.06,172.96,1.3531]
[1641191325440,1.3278,173.05,172.97,8.6715]
[1641191325839,2.0878,173.05,172.97,8.9315]
[1641191326038,1.5878,173.05,172.97,8.9315]
[1641191328942,2.0878,173.05,172.97,8.9315]
[1641191330545,1.5878,173.05,172.97,8.9315]
[1641191332049,1.31300401,173.05,172.97,8.9315]
[1641191335947,1.05300401,173.05,172.97,8.9315]
[1641191336847,1.05300401,173.05,172.99,8.6705]
[1641191337048,1.05300401,173.05,172.99,8.9305]
[1641191342850,1.55300401,173.05,172.99,8.9305]
[1641191353786,1.05300401,173.05,172.99,8.9305]
[1641191354188,10.27642066,173.07,172.99,8.9305]
[1641191354488,10.53642066,173.07,172.99,8.9305]
[1641191354688,8.9307,173.07,172.99,8.9305]
[1641191355293,9.4307,173.07,172.99,8.9305]
[1641191355689,11.03642066,173.07,172.99,8.9305]
[1641191355889,10.27642066,173.07,172.99,8.9305]
[1641191356090,1.60572066,173.07,172.99,10.35719368]
[1641191356990,2.58350679,173.09,172.99,10.35719368]
[1641191357190,2.58350679,173.09,173.0,1.3196]
[1641191357389,2.84350679,173.09,173.02,8.6694]
[1641191357591,2.84350679,173.09,173.02,8.9294]
[1641191357592,2.58350679,173.09,173.02,8.9294]
[1641191358993,2.84350679,173.09,173.02,8.9294]
[1641191359594,2.58350679,173.09,173.02,8.9294]
[1641191360195,1.60572066,173.11,173.02,8.9294]
[1641191360196,1.60572066,173.11,173.02,10.35609368]
[1641191360696,75.4439,173.12,173.02,10.35609368]
[1641191360896,75.4439,173.12,173.03,1.3408]